fUST/lending_fUST_20250817
["ID","MTS","AMOUNT","RATE_DAILY","PERIOD"]
[379712623,1755379851012,-219.040316,0.00021255,2]
[379712625,1755379851022,-219.040316,0.00021255,2]
[379712627,1755379851031,-188.599609,0.00021255,2]
[379712629,1755379851040,-151.0,0.00021258,2]
[379712631,1755379851049,-168.0,0.00021267,2]
[379712633,1755379851059,-500.0,0.00021273,2]
[379712635,1755379851068,-511.0,0.00021287,2]
[379712637,1755379851076,-220.0,0.00021291,2]
[379712639,1755379851086,-220.0,0.00021291,2]
[379712641,1755379851096,-3771.5735869,0.000213,3]
[379712643,1755379851105,-600.0,0.00021303,2]
[379712645,1755379851114,-168.0,0.00021312,2]
[379712647,1755379851123,-206.0,0.0002133,2]
[379712649,1755379851132,-511.0,0.0002133,2]
[379712651,1755379851141,-168.0,0.0002135,2]
[379712653,1755379851151,-168.0,0.00021358,2]
[379712655,1755379851159,-151.0,0.00021359,2]
[379712657,1755379851169,-511.0,0.0002139,2]
[379712659,1755379851178,-783.4,0.00021413,3]
[379712661,1755379851187,-260.0,0.00021433,2]
[379712663,1755379851197,-511.0,0.00021443,2]
[379712665,1755379851206,-172.48783191,0.00021452,2]
[379712667,1755379851215,-511.0,0.00021471,2]
[379712669,1755379851225,-172.48783191,0.00021479,2]
[379712671,1755379851235,-279.45718882,0.00021515,3]
[379712673,1755379851247,-418.96281118,0.00021515,3]
[379712675,1755379851256,-349.2,0.00021515,3]
[379712677,1755379851266,-480.0,0.00021516,2]
[379712679,1755379851276,-483.07,0.00021516,2]
[379712681,1755379851285,-480.0,0.00021516,2]
[379712683,1755379851294,-582.42,0.00021517,2]
[379712685,1755379851303,-601.21,0.00021517,2]
[379712687,1755379851312,-1864.63,0.00021517,2]
[379712689,1755379851322,-2625.15,0.00021517,2]
[379712691,1755379851332,-480.0,0.00021517,2]
[379712693,1755379851341,-1442.84,0.00021517,2]
[379712695,1755379851351,-642.18,0.00021517,2]
[379712697,1755379851360,-621.54,0.00021517,2]
[379712699,1755379851370,-814.61,0.00021517,2]
[379712701,1755379851379,-480.0,0.00021517,2]
[379712703,1755379851389,-2528.79,0.00021517,2]
[379712705,1755379851399,-787.87447912,0.00021517,2]
[379712708,1755379851410,-106.12552088,0.00021517,2]
[379712709,1755379851420,-480.0,0.00021517,2]
[379712711,1755379851429,-783.64860156,0.00021517,2]
[379712714,1755379851441,-354.49139844,0.00021517,2]
[379712716,1755379851451,-480.0,0.00021517,2]
[379712718,1755379851460,-835.63,0.00021517,2]
[379712720,1755379851470,-500.0,0.00021519,2]
[379712722,1755379851480,-151.0,0.00021521,2]
[379712724,1755379851489,-480.0,0.00021523,2]
[379712726,1755379851499,-507.9,0.00021523,2]
[379712728,1755379851509,-480.0,0.00021523,2]
[379712730,1755379851518,-845.67948821,0.00021523,2]
[379712732,1755379851530,-191.02051179,0.00021523,2]
[379712734,1755379851539,-584.82400951,0.00021523,2]
[379712736,1755379851551,-1169.38599049,0.00021523,2]
[379712738,1755379851560,-921.7,0.00021523,2]
[379712740,1755379851569,-480.0,0.00021523,2]
[379712742,1755379851579,-480.0,0.00021523,2]
[379712744,1755379851588,-1046.72134617,0.00021523,2]
[379712767,1755379851796,-654.4603919,0.00020695,2]
[379712769,1755379851808,-213.1396081,0.00020695,2]
[379712771,1755379851817,-867.6,0.00020969,2]
[379712773,1755379851826,-867.6,0.00021243,2]
[379712775,1755379851835,-506.62225343,0.00021517,2]
[379712791,1755379851980,-468.942,0.00020146,2]
[379712794,1755379851991,-11.058,0.00020146,2]
[379712796,1755379852002,-480.0,0.00020153,2]
[379712798,1755379852012,-360.97774657,0.00021517,2]
[379712800,1755379852023,-1917.64250575,0.00021523,2]
[379712810,1755379852117,616.65136394,0.00020087,2]
[379712835,1755379852342,-480.0,0.00020146,2]
[379712837,1755379852351,-480.0,0.00020147,2]
[379712839,1755379852361,-480.0,0.00020147,2]
[379712841,1755379852370,-480.0,0.00020153,2]
[379712843,1755379852379,-462.38,0.00020421,2]
[379712845,1755379852389,-522.87,0.00020694,10]
[379712847,1755379852398,-480.0,0.00021252,2]
[379712849,1755379852408,-1754.44614808,0.00021523,2]
[379712851,1755379852418,-604.72,0.00021523,2]
[379712853,1755379852428,-480.0,0.00021523,2]
[379712855,1755379852437,-617.33,0.00021523,2]
[379712857,1755379852446,-152.15027642,0.00021523,2]
[379713289,1755379893817,189.389005,0.00019863,2]
[379713290,1755379899729,360971.47484527,0.00020053,2]
[379713291,1755379899782,384.417393,0.00013699,2]
[379713292,1755379909238,500.0,0.00019725,2]
[379713293,1755379918181,157.87402807,0.00019149,2]
[379713295,1755380069357,160.0,0.0002,3]
[379713296,1755380070174,160.0,0.0002,3]
[379713297,1755380075865,929.03907862,0.00020047,2]
[379713298,1755380128391,100029.1215497,0.00019151,2]
[379713299,1755380169501,500.0,0.00019725,2]
[379713300,1755380219713,150.0,0.00019143,2]
[379713301,1755380273953,1091.2606536,0.00020045,2]
[379713302,1755380274485,1049.89489204,0.00020057,2]
[379713303,1755380374824,160.0,0.0002,3]
[379713309,1755380464268,1061.04309878,0.00020044,2]
[379713310,1755380520972,150.0,0.00019143,2]
[379713311,1755380614868,839.91591364,0.00020053,2]
[379713312,1755380661854,928.41271145,0.00020042,2]
[379713313,1755380678603,160.0,0.0002,3]
[379713321,1755380814576,150.63,0.000201,10]
[379713322,1755380872719,1058.9114278,0.0002004,2]
[379713323,1755380874992,189.389005,0.00019863,2]
[379713326,1755380955478,671.93273092,0.00020045,2]
[379713328,1755380983024,160.0,0.0002,3]
[379713336,1755381031525,365.196523,0.00013699,2]
[379713343,1755381032072,-250.0,0.00020134,2]
[379713344,1755381032082,-250.0,0.00020134,2]
[379713345,1755381032091,-250.0,0.00020134,2]
[379713346,1755381032101,-250.0,0.00020134,2]
[379713347,1755381032110,-407.28,0.00020136,3]
[379713348,1755381032119,-300.0,0.00020138,2]
[379713349,1755381032128,-300.0,0.00020138,2]
[379713350,1755381032137,-1200.0,0.00020138,2]
[379713351,1755381032147,-440.0,0.00020138,2]
[379713352,1755381032156,-1200.0,0.00020139,2]
[379713353,1755381032166,-445.91101771,0.00020139,2]
[379713354,1755381032175,-332.52442602,0.00020139,2]
[379713355,1755381032187,-147.47557398,0.00020139,2]
[379713356,1755381032196,-480.0,0.00020139,2]
[379713357,1755381032206,-577.94,0.00020139,2]
[379713358,1755381032215,-830.37,0.00020139,2]
[379713359,1755381032225,-2045.9,0.00020139,2]
[379713360,1755381032235,-2604.07465436,0.0002014,2]
[379713435,1755381038162,-500.0,0.00020138,2]
[379713436,1755381038172,-500.0,0.00020138,2]
[379713437,1755381038181,-502.8246844,0.00020138,2]
[379713438,1755381038190,-500.0,0.00020138,2]
[379713439,1755381038199,-500.0,0.00020138,2]
[379713441,1755381038208,-500.0,0.00020138,2]
[379713442,1755381038218,-500.0,0.00020138,2]
[379713443,1755381038227,-500.0,0.00020138,2]
[379713444,1755381038235,-500.0,0.00020138,2]
[379713445,1755381038244,-169.08658882,0.00020138,2]
[379713446,1755381038255,-500.0,0.00020138,2]
[379713447,1755381038267,-326.92352339,0.00020138,2]
[379713448,1755381038276,-500.0,0.00020138,2]
[379713449,1755381038285,-500.0,0.00020138,2]
[379713450,1755381038295,-270.18419753,0.00020138,2]
[379713451,1755381038306,-500.0,0.00020138,2]
[379713452,1755381038315,-500.0,0.00020138,2]
[379713453,1755381038324,-500.0,0.00020138,2]
[379713454,1755381038335,-379.94065592,0.00020138,2]
[379713455,1755381038346,-429.67184998,0.00020138,2]
[379713456,1755381038355,-304.87841899,0.00020138,2]
[379713457,1755381038371,-162.65814373,0.00020138,2]
[379713458,1755381038380,-500.0,0.00020138,2]
[379713459,1755381038390,-500.0,0.00020138,2]
[379713460,1755381038399,-500.0,0.00020138,2]
[379713461,1755381038410,-263.68169558,0.00020138,2]
[379713462,1755381038419,-500.0,0.00020138,2]
[379713463,1755381038428,-500.0,0.00020138,2]
[379713464,1755381038438,-500.0,0.00020138,2]
[379713465,1755381038448,-500.0,0.00020138,2]
[379713466,1755381038457,-500.0,0.00020138,2]
[379713467,1755381038467,-500.0,0.00020138,2]
[379713468,1755381038476,-500.0,0.00020138,2]
[379713469,1755381038486,-500.0,0.00020138,2]
[379713470,1755381038496,-500.0,0.00020138,2]
[379713471,1755381038505,-500.0,0.00020138,2]
[379713472,1755381038515,-500.0,0.00020138,2]
[379713473,1755381038524,-500.0,0.00020138,2]
[379713474,1755381038533,-500.0,0.00020138,2]
[379713475,1755381038542,-500.0,0.00020138,2]
[379713476,1755381038552,-500.0,0.00020138,2]
[379713477,1755381038562,-500.0,0.00020138,2]
[379713478,1755381038572,-500.0,0.00020138,2]
[379713479,1755381038582,-500.0,0.00020138,2]
[379713480,1755381038591,-500.0,0.00020138,2]
[379713481,1755381038600,-500.0,0.00020138,2]
[379713482,1755381038609,-500.0,0.00020138,2]
[379713483,1755381038618,-500.0,0.00020138,2]
[379713484,1755381038627,-500.0,0.00020138,2]
[379713485,1755381038637,-500.0,0.00020138,2]
[379713486,1755381038646,-500.0,0.00020138,2]
[379713487,1755381038655,-500.0,0.00020138,2]
[379713488,1755381038664,-600.0,0.00020138,2]
[379713489,1755381038674,-500.0,0.00020138,2]
[379713490,1755381038684,-500.0,0.00020138,2]
[379713491,1755381038693,-500.0,0.00020138,2]
[379713492,1755381038704,-500.0,0.00020138,2]
[379713493,1755381038713,-480.0,0.00020138,2]
[379713494,1755381038723,-29558.04229715,0.0002014,2]
[379713495,1755381038732,-241.18390223,0.0002014,2]
[379713496,1755381038741,-500.0,0.00020141,2]
[379713497,1755381038751,-480.0,0.00020141,2]
[379713498,1755381038760,-323.62383692,0.00020141,2]
[379713499,1755381038769,-480.0,0.00020141,2]
[379713500,1755381038779,-480.0,0.00020141,2]
[379713501,1755381038788,-480.0,0.00020141,2]
[379713502,1755381038797,-460.0,0.00020141,2]
[379713503,1755381038807,-460.0,0.00020141,2]
[379713504,1755381038816,-480.0,0.00020141,2]
[379713505,1755381038825,-480.0,0.00020141,2]
[379713506,1755381038835,-460.0,0.00020141,2]
[379713507,1755381038844,-480.0,0.00020141,2]
[379713508,1755381038853,-761.16,0.00020141,2]
[379713509,1755381038862,-480.0,0.00020141,2]
[379713510,1755381038871,-480.0,0.00020141,2]
[379713511,1755381038881,-480.0,0.00020141,2]
[379713512,1755381038890,-480.0,0.00020141,2]
[379713513,1755381038899,-480.0,0.00020141,2]
[379713514,1755381038908,-480.0,0.00020141,2]
[379713515,1755381038918,-480.0,0.00020141,2]
[379713516,1755381038927,-531.0,0.00020141,2]
[379713517,1755381038936,-480.0,0.00020141,2]
[379713518,1755381038945,-480.0,0.00020141,2]
[379713519,1755381038954,-460.0,0.00020141,2]
[379713520,1755381038963,-464.44428695,0.00020141,2]
[379713521,1755381038973,-480.0,0.00020141,2]
[379713522,1755381038982,-460.0,0.00020141,2]
[379713523,1755381038991,-480.0,0.00020141,2]
[379713524,1755381039001,-440.0,0.00020141,2]
[379713525,1755381039011,-480.0,0.00020141,2]
[379713526,1755381039020,-480.0,0.00020141,2]
[379713527,1755381039029,-480.0,0.00020141,2]
[379713528,1755381039038,-480.0,0.00020141,2]
[379713529,1755381039047,-460.0,0.00020141,2]
[379713530,1755381039056,-480.0,0.00020141,2]
[379713531,1755381039065,-443.11065905,0.00020141,2]
[379713532,1755381039074,-500.0,0.00020141,2]
[379713533,1755381039083,-480.0,0.00020141,2]
[379713534,1755381039092,-638.4,0.00020141,2]
[379713535,1755381039101,-480.0,0.00020141,2]
[379713536,1755381039111,-480.0,0.00020141,2]
[379713537,1755381039121,-460.0,0.00020141,2]
[379713538,1755381039130,-480.0,0.00020141,2]
[379713539,1755381039139,-480.0,0.00020141,2]
[379713540,1755381039148,-480.0,0.00020141,2]
[379713541,1755381039157,-460.0,0.00020141,2]
[379713542,1755381039166,-480.0,0.00020141,2]
[379713543,1755381039175,-480.0,0.00020141,2]
[379713544,1755381039184,-480.0,0.00020141,2]
[379713545,1755381039194,-1717.9,0.00020141,2]
[379713546,1755381039203,-480.0,0.00020141,2]
[379713547,1755381039211,-507.22,0.00020141,2]
[379713548,1755381039221,-480.0,0.00020141,2]
[379713549,1755381039230,-480.0,0.00020141,2]
[379713550,1755381039239,-2423.63,0.00020141,2]
[379713551,1755381039248,-480.0,0.00020141,2]
[379713552,1755381039259,-480.0,0.00020141,2]
[379713553,1755381039271,-480.0,0.00020141,2]
[379713554,1755381039281,-480.0,0.00020141,2]
[379713555,1755381039290,-480.0,0.00020141,2]
[379713556,1755381039300,-480.0,0.00020141,2]
[379713557,1755381039310,-480.0,0.00020141,2]
[379713558,1755381039319,-1825.95,0.00020141,2]
[379713559,1755381039328,-480.0,0.00020141,2]
[379713560,1755381039339,-480.0,0.00020141,2]
[379713561,1755381039349,-480.0,0.00020141,2]
[379713562,1755381039358,-599.32,0.00020141,2]
[379713563,1755381039368,-480.0,0.00020141,2]
[379713564,1755381039377,-480.0,0.00020141,2]
[379713565,1755381039387,-480.0,0.00020141,2]
[379713566,1755381039396,-480.0,0.00020141,2]
[379713567,1755381039405,-480.0,0.00020141,2]
[379713568,1755381039414,-480.0,0.00020141,2]
[379713569,1755381039423,-480.0,0.00020141,2]
[379713570,1755381039432,-480.0,0.00020141,2]
[379713571,1755381039441,-480.0,0.00020141,2]
[379713572,1755381039450,-480.0,0.00020141,2]
[379713573,1755381039459,-480.0,0.00020141,2]
[379713574,1755381039468,-480.0,0.00020141,2]
[379713575,1755381039478,-480.0,0.00020141,2]
[379713576,1755381039487,-480.0,0.00020141,2]
[379713577,1755381039496,-480.0,0.00020141,2]
[379713578,1755381039505,-460.0,0.00020141,2]
[379713579,1755381039515,-480.0,0.00020141,2]
[379713580,1755381039524,-782.67,0.00020141,2]
[379713582,1755381039533,-480.0,0.00020141,2]
[379713583,1755381039542,-480.0,0.00020141,2]
[379713584,1755381039551,-480.0,0.00020141,2]
[379713585,1755381039561,-480.0,0.00020141,2]
[379713586,1755381039570,-993.46,0.00020141,2]
[379713587,1755381039579,-480.0,0.00020141,2]
[379713588,1755381039588,-480.0,0.00020141,2]
[379713589,1755381039597,-480.0,0.00020141,2]
[379713591,1755381039770,-480.0,0.00020141,2]
[379713592,1755381039780,-578.60655237,0.00020141,2]
[379713593,1755381039790,-480.0,0.00020141,2]
[379713595,1755381039799,-480.0,0.00020141,2]
[379713597,1755381039808,-590.41,0.00020142,2]
[379713599,1755381039818,-500.0,0.00020142,2]
[379713601,1755381039827,-500.0,0.00020142,2]
[379713603,1755381039836,-500.0,0.00020142,2]
[379713605,1755381039846,-480.0,0.00020142,2]
[379713606,1755381039855,-4529.78,0.00020142,2]
[379713608,1755381039868,-480.0,0.00020142,2]
[379713610,1755381039877,-480.0,0.00020142,2]
[379713612,1755381039887,-781.4,0.00020142,2]
[379713614,1755381039896,-480.0,0.00020143,2]
[379713616,1755381039905,-480.0,0.00020143,2]
[379713618,1755381039915,-480.0,0.00020143,2]
[379713620,1755381039924,-480.0,0.00020143,2]
[379713622,1755381039934,-480.0,0.00020143,2]
[379713624,1755381039945,-480.0,0.00020143,2]
[379713626,1755381039954,-480.0,0.00020143,2]
[379713628,1755381039963,-460.0,0.00020143,2]
[379713630,1755381039973,-480.0,0.00020143,2]
[379713632,1755381039982,-480.0,0.00020143,2]
[379713634,1755381039991,-480.0,0.00020143,2]
[379713636,1755381040002,-480.0,0.00020143,2]
[379713638,1755381040011,-480.0,0.00020143,2]
[379713640,1755381040020,-900.82,0.00020143,2]
[379713642,1755381040030,-1506.54,0.00020143,2]
[379713644,1755381040040,-796.79,0.00020143,2]
[379713646,1755381040049,-460.0,0.00020143,2]
[379713648,1755381040059,-480.0,0.00020143,2]
[379713649,1755381040068,-480.0,0.00020143,2]
[379713651,1755381040078,-480.0,0.00020143,2]
[379713653,1755381040095,-480.0,0.00020143,2]
[379713655,1755381040114,-480.0,0.00020143,2]
[379713657,1755381040124,-480.0,0.00020143,2]
[379713659,1755381040136,-480.0,0.00020143,2]
[379713660,1755381040146,-460.0,0.00020143,2]
[379713661,1755381040156,-480.0,0.00020143,2]
[379713663,1755381040169,-480.0,0.00020143,2]
[379713665,1755381040179,-480.0,0.00020143,2]
[379713666,1755381040189,-505.09,0.00020143,2]
[379713668,1755381040198,-480.0,0.00020143,2]
[379713670,1755381040207,-500.0,0.00020143,2]
[379713672,1755381040217,-480.0,0.00020143,2]
[379713674,1755381040226,-480.0,0.00020143,2]
[379713676,1755381040236,-537.75,0.00020143,2]
[379713677,1755381040246,-480.0,0.00020143,2]
[379713679,1755381040257,-480.0,0.00020143,2]
[379713681,1755381040273,-480.0,0.00020143,2]
[379713683,1755381040291,-480.0,0.00020143,2]
[379713685,1755381040300,-480.0,0.00020143,2]
[379713687,1755381040309,-480.0,0.00020143,2]
[379713689,1755381040318,-728.6,0.00020143,2]
[379713691,1755381040327,-651.17,0.00020143,2]
[379713693,1755381040336,-522.19,0.00020143,2]
[379713695,1755381040345,-480.0,0.00020143,2]
[379713696,1755381040354,-480.0,0.00020143,2]
[379713698,1755381040364,-828.22,0.00020143,2]
[379713700,1755381040373,-480.0,0.00020143,2]
[379713702,1755381040382,-480.0,0.00020143,2]
[379713704,1755381040392,-480.0,0.00020143,2]
[379713706,1755381040401,-480.0,0.00020143,2]
[379713708,1755381040410,-480.0,0.00020143,2]
[379713710,1755381040419,-480.0,0.00020143,2]
[379713712,1755381040428,-867.67,0.00020143,2]
[379713714,1755381040437,-627.91,0.00020143,2]
[379713715,1755381040446,-480.0,0.00020143,2]
[379713717,1755381040455,-480.0,0.00020143,2]
[379713719,1755381040464,-480.0,0.00020143,2]
[379713721,1755381040474,-480.0,0.00020143,2]
[379713723,1755381040483,-480.0,0.00020143,2]
[379713742,1755381040699,-621.47,0.00020143,2]
[379713743,1755381040709,-480.0,0.00020143,2]
[379713744,1755381040718,-480.0,0.00020143,2]
[379713745,1755381040727,-480.0,0.00020143,2]
[379713746,1755381040736,-480.0,0.00020143,2]
[379713747,1755381040746,-480.0,0.00020143,2]
[379713748,1755381040755,-509.23,0.00020143,2]
[379713749,1755381040765,-480.0,0.00020143,2]
[379713750,1755381040774,-480.0,0.00020143,2]
[379713751,1755381040783,-480.0,0.00020143,2]
[379713752,1755381040793,-690.66,0.00020143,2]
[379713753,1755381040802,-480.0,0.00020143,2]
[379713754,1755381040812,-480.0,0.00020143,2]
[379713755,1755381040821,-480.0,0.00020143,2]
[379713756,1755381040830,-480.0,0.00020143,2]
[379713757,1755381040839,-480.0,0.00020143,2]
[379713758,1755381040848,-855.37,0.00020143,2]
[379713759,1755381040858,-480.0,0.00020143,2]
[379713760,1755381040867,-480.0,0.00020143,2]
[379713761,1755381040876,-480.0,0.00020143,2]
[379713762,1755381040886,-480.0,0.00020143,2]
[379713763,1755381040895,-480.0,0.00020143,2]
[379713764,1755381040904,-480.0,0.00020143,2]
[379713765,1755381040914,-761.69,0.00020143,2]
[379713766,1755381040923,-480.0,0.00020143,2]
[379713767,1755381040933,-480.0,0.00020143,2]
[379713768,1755381040943,-500.0,0.00020144,2]
[379713769,1755381040952,-179.2,0.00020144,2]
[379713770,1755381040963,-3297.88,0.00020145,2]
[379713771,1755381040972,-460.0,0.00020145,2]
[379713772,1755381040982,-480.0,0.00020145,2]
[379713773,1755381040991,-909.15,0.00020145,2]
[379713774,1755381041000,-500.0,0.00020145,2]
[379713775,1755381041009,-500.0,0.00020145,2]
[379713776,1755381041019,-306.19,0.00020145,2]
[379713777,1755381041028,-480.0,0.00020145,2]
[379713778,1755381041037,-9122.3,0.00020145,2]
[379713779,1755381041047,-985.18,0.00020145,2]
[379713780,1755381041056,-748.04,0.00020145,2]
[379713781,1755381041065,-480.0,0.00020145,2]
[379713782,1755381041075,-2620.77,0.00020145,2]
[379713783,1755381041084,-480.0,0.00020145,2]
[379713784,1755381041092,-480.0,0.00020145,2]
[379713785,1755381041101,-480.0,0.00020145,2]
[379713786,1755381041111,-1732.99,0.00020145,2]
[379713787,1755381041120,-480.0,0.00020145,2]
[379713788,1755381041129,-480.0,0.00020146,2]
[379713789,1755381041138,-480.0,0.00020146,2]
[379713790,1755381041148,-480.0,0.00020146,2]
[379713791,1755381041157,-480.0,0.00020146,2]
[379713792,1755381041166,-254.33868751,0.00020146,2]
[379713793,1755381041175,-773.08,0.00020146,2]
[379713794,1755381041184,-480.0,0.00020146,2]
[379713795,1755381041193,-480.0,0.00020146,2]
[379713796,1755381041202,-498.85,0.00020146,2]
[379713797,1755381041211,-480.0,0.00020146,2]
[379713798,1755381041220,-480.0,0.00020146,2]
[379713799,1755381041229,-1112.47,0.00020146,2]
[379713800,1755381041238,-1188.18,0.00020146,2]
[379713801,1755381041247,-480.0,0.00020146,2]
[379713803,1755381041256,-480.0,0.00020146,2]
[379713804,1755381041270,-480.0,0.00020146,2]
[379713805,1755381041279,-480.0,0.00020146,2]
[379713807,1755381041289,-480.0,0.00020146,2]
[379713809,1755381041298,-288.59831537,0.00020146,2]
[379713811,1755381041309,-530.53,0.00020146,2]
[379713813,1755381041318,-480.0,0.00020146,2]
[379713814,1755381041327,-480.0,0.00020146,2]
[379713816,1755381041336,-635.83,0.00020146,2]
[379713818,1755381041350,-480.0,0.00020146,2]
[379713820,1755381041360,-480.0,0.00020146,2]
[379713822,1755381041369,-480.0,0.00020146,2]
[379713824,1755381041378,-480.0,0.00020146,2]
[379713826,1755381041387,-480.0,0.00020146,2]
[379713828,1755381041396,-480.0,0.00020146,2]
[379713829,1755381041405,-480.0,0.00020146,2]
[379713831,1755381041414,-480.0,0.00020146,2]
[379713833,1755381041423,-480.0,0.00020146,2]
[379713835,1755381041432,-480.0,0.00020146,2]
[379713837,1755381041442,-380.0,0.00020146,2]
[379713839,1755381041451,-480.0,0.00020146,2]
[379713841,1755381041460,-578.41,0.00020146,2]
[379713843,1755381041469,-480.0,0.00020146,2]
[379713845,1755381041478,-782.87,0.00020146,2]
[379713847,1755381041488,-480.0,0.00020146,2]
[379713849,1755381041497,-460.0,0.00020146,2]
[379713851,1755381041506,-546.33,0.00020146,2]
[379713852,1755381041515,-480.0,0.00020146,2]
[379713854,1755381041524,-480.0,0.00020146,2]
[379713856,1755381041535,-480.0,0.00020146,2]
[379713858,1755381041544,-175.89055285,0.00020146,2]
[379713860,1755381041554,-480.0,0.00020146,2]
[379713862,1755381041562,-1269.02,0.00020146,2]
[379713864,1755381041571,-480.0,0.00020146,2]
[379713866,1755381041581,-255.32038654,0.00020146,2]
[379713868,1755381041590,-480.0,0.00020146,2]
[379713870,1755381041600,-733.93,0.00020146,2]
[379713872,1755381041609,-616.57,0.00020146,2]
[379713874,1755381041618,-480.0,0.00020146,2]
[379713876,1755381041627,-480.0,0.00020146,2]
[379713877,1755381041636,-480.0,0.00020146,2]
[379713879,1755381041645,-480.0,0.00020146,2]
[379713881,1755381041655,-480.0,0.00020146,2]
[379713883,1755381041664,-480.0,0.00020146,2]
[379713885,1755381041673,-1084.13,0.00020146,2]
[379713887,1755381041682,-645.44,0.00020146,2]
[379713889,1755381041692,-347.29097973,0.00020146,2]
[379713891,1755381041701,-460.0,0.00020146,2]
[379713893,1755381041711,-480.0,0.00020146,2]
[379713895,1755381041720,-480.0,0.00020146,2]
[379713897,1755381041730,-480.0,0.00020146,2]
[379713899,1755381041739,-480.0,0.00020146,2]
[379713901,1755381041749,-268.02377944,0.00020146,2]
[379713903,1755381041759,-480.0,0.00020146,2]
[379713905,1755381041768,-480.0,0.00020146,2]
[379713907,1755381041777,-480.0,0.00020146,2]
[379713908,1755381041788,-420.99494385,0.00020146,2]
[379713910,1755381041797,-480.0,0.00020146,2]
[379713912,1755381041807,-480.0,0.00020146,2]
[379713914,1755381041816,-480.0,0.00020146,2]
[379713916,1755381041826,-480.0,0.00020146,2]
[379713918,1755381041835,-741.17,0.00020146,2]
[379713920,1755381041844,-480.0,0.00020146,2]
[379713922,1755381041854,-480.0,0.00020146,2]
[379713924,1755381041863,-480.0,0.00020146,2]
[379713926,1755381041873,-480.0,0.00020146,2]
[379713928,1755381041882,-480.0,0.00020146,2]
[379713930,1755381041891,-480.0,0.00020146,2]
[379713932,1755381041901,-480.0,0.00020146,2]
[379713934,1755381041910,-480.0,0.00020146,2]
[379713936,1755381041919,-480.0,0.00020146,2]
[379713938,1755381041929,-480.0,0.00020146,2]
[379713940,1755381041938,-480.0,0.00020146,2]
[379713942,1755381041948,-480.0,0.00020146,2]
[379713944,1755381041958,-428.81321486,0.00020146,2]
[379713946,1755381041968,-480.0,0.00020146,2]
[379713948,1755381041976,-480.0,0.00020146,2]
[379713949,1755381041985,-420.84581431,0.00020146,2]
[379713951,1755381041994,-460.0,0.00020146,2]
[379713953,1755381042004,-480.0,0.00020146,2]
[379713955,1755381042013,-480.0,0.00020146,2]
[379713957,1755381042022,-480.0,0.00020146,2]
[379713959,1755381042031,-182.5422662,0.00020146,2]
[379713961,1755381042040,-480.0,0.00020146,2]
[379713963,1755381042050,-460.0,0.00020146,2]
[379713964,1755381042059,-520.18,0.00020146,2]
[379713966,1755381042068,-500.0,0.00020146,2]
[379713968,1755381042077,-480.0,0.00020146,2]